Workbook

Sheet Angaben
B1: Übergangsbereichsrechner
B3: =IFERROR(CONCATENATE(" Beitragsberechnung vers.pflichtiger Beschäftigter innerhalb des Übergangsbereichs (",UGrenz+0.01," € bis ",TEXT(OGrenz,"0.000,00")," €)"),"Beitragsberechnung vers.pfl. Beschäftigter innerhalb der Gleitzone ") -> Beitragsberechnung vers.pflichtiger Beschäftigter innerhalb des Übergangsbereichs (520,01 € bis 2.000,00 €)
B4: ="Beitragszeitraum: 01.07." & Zeitraum & " - 31.12."& Zeitraum -> Beitragszeitraum: 01.07.2023 - 31.12.2023
B5: Zutreffende Sonderregelungen: | G5: Individuelle Angaben: | M5: Auswahl des individuellen KV-Zusatzbeitragssatzes
G7: Angabe des individuellen KV-Zusatzbeitragssatzes: | J7: =IF(AND(LC_Liste_KV_Zu=1,BS_KV_Zu_man=""),"",BS_KV_Zu/100) -> 0
G9: Gültiger KV-Beitragssatz: | J9: =IFERROR(BS_KV_allg/100,"") -> 0.146
G11: Beitragsabschlag in der PV (ab dem 2. Kind)
G12: Höhe des Beitragsabschlags
G13: Beitragszuschlag wegen Kinderlosigkeit in der PV:
G15: Allgemeine Beitragssätze der Sozialversicherung:
G17: Durchschnittlicher Gesamtsozialversicherungsbeitragssatz | J17: =IFERROR(Steuerung!C7/100,"") -> 0.408
G19: allgemeiner Beitragssatz Krankenversicherung | J19: =IFERROR(Steuerung!C8/100,"") -> 0.146
G20: durchschnittl. Zusatzbeitragssatz Krankenversicherung | J20: =IFERROR(Steuerung!C12/100,"") -> 0.016
G21: Beitragssatz Rentenversicherung | J21: =IFERROR(nRV_Satz_Jahr/100,"") -> 0.186
G22: Beitragssatz Arbeitslosenversicherung | J22: =IFERROR(nAV_Satz_Jahr/100,"") -> 0.026
G23: Beitragssatz Pflegeversicherung | J23: =IFERROR(nPV_Satz_Jahr/100,"") -> 0.034
G25: Zutreffende Arbeitgeber-Umlagen
G27: U1 - Krankheitsfall | J27: =S_U1_Satz -> 0
G29: U2 - Mutterschaft | J29: =S_U2_Satz -> 0
G31: Insolvenzumlage | J31: =IFERROR(S_U3_Satz,"") -> 0

Sheet Dialog
B1: =CONCATENATE(" Beitragsberechnung vers.pfl. Beschäftigter innerhalb des Übergangsbereichs (",UGrenz+0.01," € bis ",TEXT(OGrenz,"0.000,00")," €)") -> Beitragsberechnung vers.pfl. Beschäftigter innerhalb des Übergangsbereichs (520,01 € bis 2.000,00 €)
B2: ="Beitragszeitraum: 01.07." & Zeitraum & " - 31.12."& Zeitraum -> Beitragszeitraum: 01.07.2023 - 31.12.2023
B4: Berechnungsgrundlagen: | F4: Aktive Sonderregelungen: | K4: ohne Sonderfall
D5: Monatliches Arbeitsentgelt: | E5: 1000 | F5: KV: | G5: allgemeiner Beitragssatz
D7: Übergangsbereichsentgelt: | E7: 891.85 | F7: RV:
D9: BE Arbeitnehmer: | E9: 648.65 | F9: AV:
F11: PV:
F13: Sonderfälle:
B17: Voller SV-Beitrag: | D17: Arbeitgeberanteile: | F17: Arbeitnehmeranteile: | H17: Beitragssatz:
B18: KV: | C18: 130.22 | D18: KV: | E18: 82.87 | F18: KV: | G18: 47.35 | H18: KV: | I18: 0.146
B20: =IF(S_KV_PV_frei<>TRUE,"Zusatz KV:","") -> Zusatz KV: | C20: 4.46 | D20: =B20 -> Zusatz KV: | E20: 2.84 | F20: =B20 -> Zusatz KV: | G20: 1.62 | H20: =B20 -> Zusatz KV: | I20: 0.005
B22: RV: | C22: 165.88 | D22: RV: | E22: 105.56 | F22: RV: | G22: 60.32 | H22: RV: | I22: 0.186
B24: AV: | C24: 23.18 | D24: AV: | E24: 14.75 | F24: AV: | G24: 8.43 | H24: AV: | I24: 0.026
B26: PV: | C26: 30.32 | D26: PV: | E26: 19.29 | F26: PV: | G26: 11.03 | H26: PV: | I26: 0.034
B28: =IF(S_PV_Zu=1,"Zuschl. PV:","") ->  | D28: =B28 ->  | F28: =B28 ->  | H28: =B28 -> 
B30: SV-Gesamt: | C30: =SUM(C18:C28) -> 354.06 | D30: SV-Gesamt: | E30: =SUM(E18:E28) -> 225.31 | F30: SV-Gesamt: | G30: =SUM(G18:G28) -> 128.75
B32: =IF(S_U1=TRUE,"U1:","") ->  | D32: =B32 ->  | H32: =B32 -> 
B33: =IF(S_U2=TRUE,"U2:","") ->  | D33: =B33 ->  | H33: =B33 -> 
B34: =IF(S_U3=TRUE,"Insolvenzuml.:","") ->  | D34: =B34 ->  | H34: =B34 -> 
B36: =IF(OR(S_U1=TRUE,S_U2=TRUE,S_U3=TRUE),"Uml.-Gesamt:","") ->  | C36: =IF(OR(S_U1=TRUE,S_U2=TRUE,S_U3=TRUE),SUM(C32:C34),"") ->  | D36: =B36 ->  | E36: =IF(OR(S_U1=TRUE,S_U2=TRUE,S_U3=TRUE),SUM(E32:E35),"") -> 
B38: =IF(OR(S_U1=TRUE,S_U2=TRUE,S_U3=TRUE),"Insgesamt:","") ->  | C38: =IF(OR(S_U1=TRUE,S_U2=TRUE,S_U3=TRUE),SUM(C30:C34),"") ->  | D38: =B38 ->  | E38: =IF(OR(S_U1=TRUE,S_U2=TRUE,S_U3=TRUE),SUM(E30:E34),"") ->  | F38: =B38 ->  | G38: =IF(OR(S_U1=TRUE,S_U2=TRUE,S_U3=TRUE),SUM(G30:G34),"") -> 

Sheet Tabelle
C1: Beitragspflichtige Einnahmen und Beitragsberechnung versicherungspfl. Beschäftigter
C2: =CONCATENATE("innerhalb des Übergangsbereichs von ",UGrenz+0.01," € bis ",TEXT(OGrenz,"0.000,00")," €") -> innerhalb des Übergangsbereichs von 520,01 € bis 2.000,00 €
C3: (§ 20 Abs.2 und Abs. 2a SGB IV, § 344 Abs.4 SGB III, § 226 Abs.4 SGB V, § 163 Abs. 7 SGB VI, § 58 Abs.5 SGB XI)
C5: ="Beitragszeitraum: 01.07.2023 - 31.12.2023" -> Beitragszeitraum: 01.07.2023 - 31.12.2023
C6: monatliches Arbeitsentgelt | D6: ="Beitragsbemes-sungsgrundlage bei: "&Steuerung!C7&" %" -> Beitragsbemes-sungsgrundlage bei: 40,8 % | E6: Beitragspflichtige Einnahme Arbeitnehmer | F6: monatliches Arbeitsentgelt | G6: =D6 -> Beitragsbemes-sungsgrundlage bei: 40,8 % | H6: Beitragspflichtige Einnahme Arbeitnehmer
C7: =UGrenz+0.01 -> 520.01 | D7: =ROUND(Faktor * UGrenz + ((OGrenz / (OGrenz - UGrenz)) - (UGrenz / (OGrenz - UGrenz)) * Faktor) * (C7 - UGrenz), 2) -> 359.96 | E7: =ROUND((OGrenz / (OGrenz - UGrenz)) * (C7 - UGrenz), 2) -> 0.01 | F7: =C61+5 -> 795 | G7: =ROUND(Faktor * UGrenz + ((OGrenz / (OGrenz - UGrenz)) - (UGrenz / (OGrenz - UGrenz)) * Faktor) * (F7 - UGrenz), 2) -> 664.68 | H7: =ROUND((OGrenz / (OGrenz - UGrenz)) * (F7 - UGrenz), 2) -> 371.62
C8: =UGrenz+5 -> 525 | D8: 365.48 | E8: 6.76 | F8: =F7+5 -> 800 | G8: 670.22 | H8: 378.38
C9: =C8+5 -> 530 | D9: 371.03 | E9: 13.51 | F9: =F8+5 -> 805 | G9: 675.77 | H9: 385.14
C10: 535 | D10: 376.57 | E10: 20.27 | F10: 810 | G10: 681.31 | H10: 391.89
C11: 540 | D11: 382.11 | E11: 27.03 | F11: 815 | G11: 686.85 | H11: 398.65
C12: 545 | D12: 387.65 | E12: 33.78 | F12: 820 | G12: 692.39 | H12: 405.41
C13: 550 | D13: 393.19 | E13: 40.54 | F13: 825 | G13: 697.93 | H13: 412.16
C14: 555 | D14: 398.73 | E14: 47.3 | F14: 830 | G14: 703.47 | H14: 418.92
C15: 560 | D15: 404.27 | E15: 54.05 | F15: 835 | G15: 709.01 | H15: 425.68
C16: 565 | D16: 409.81 | E16: 60.81 | F16: 840 | G16: 714.55 | H16: 432.43
C17: 570 | D17: 415.35 | E17: 67.57 | F17: 845 | G17: 720.09 | H17: 439.19
C18: 575 | D18: 420.89 | E18: 74.32 | F18: 850 | G18: 725.63 | H18: 445.95
C19: 580 | D19: 426.43 | E19: 81.08 | F19: 855 | G19: 731.17 | H19: 452.7
C20: 585 | D20: 431.97 | E20: 87.84 | F20: 860 | G20: 736.71 | H20: 459.46
C21: 590 | D21: 437.51 | E21: 94.59 | F21: 865 | G21: 742.25 | H21: 466.22
C22: 595 | D22: 443.05 | E22: 101.35 | F22: 870 | G22: 747.8 | H22: 472.97
C23: =C22+5 -> 600 | D23: 448.6 | E23: 108.11 | F23: 875 | G23: 753.34 | H23: 479.73
C24: 605 | D24: 454.14 | E24: 114.86 | F24: 880 | G24: 758.88 | H24: 486.49
C25: 610 | D25: 459.68 | E25: 121.62 | F25: 885 | G25: 764.42 | H25: 493.24
C26: 615 | D26: 465.22 | E26: 128.38 | F26: 890 | G26: 769.96 | H26: 500
C27: 620 | D27: 470.76 | E27: 135.14 | F27: 895 | G27: 775.5 | H27: 506.76
C28: 625 | D28: 476.3 | E28: 141.89 | F28: 900 | G28: 781.04 | H28: 513.51
C29: 630 | D29: 481.84 | E29: 148.65 | F29: 905 | G29: 786.58 | H29: 520.27
C30: =C29+5 -> 635 | D30: 487.38 | E30: 155.41 | F30: 910 | G30: 792.12 | H30: 527.03
C31: 640 | D31: 492.92 | E31: 162.16 | F31: 915 | G31: 797.66 | H31: 533.78
C32: 645 | D32: 498.46 | E32: 168.92 | F32: 920 | G32: 803.2 | H32: 540.54
C33: 650 | D33: 504 | E33: 175.68 | F33: 925 | G33: 808.74 | H33: 547.3
C34: 655 | D34: 509.54 | E34: 182.43 | F34: 930 | G34: 814.28 | H34: 554.05
C35: 660 | D35: 515.08 | E35: 189.19 | F35: 935 | G35: 819.82 | H35: 560.81
C36: 665 | D36: 520.63 | E36: 195.95 | F36: 940 | G36: 825.37 | H36: 567.57
C37: 670 | D37: 526.17 | E37: 202.7 | F37: 945 | G37: 830.91 | H37: 574.32
C38: 675 | D38: 531.71 | E38: 209.46 | F38: 950 | G38: 836.45 | H38: 581.08
C39: 680 | D39: =ROUND(Faktor * UGrenz + ((OGrenz / (OGrenz - UGrenz)) - (UGrenz / (OGrenz - UGrenz)) * Faktor) * (C39 - UGrenz), 2) -> 537.25 | E39: =ROUND((OGrenz / (OGrenz - UGrenz)) * (C39 - UGrenz), 2) -> 216.22 | F39: 955 | G39: =ROUND(Faktor * UGrenz + ((OGrenz / (OGrenz - UGrenz)) - (UGrenz / (OGrenz - UGrenz)) * Faktor) * (F39 - UGrenz), 2) -> 841.99 | H39: =ROUND((OGrenz / (OGrenz - UGrenz)) * (F39 - UGrenz), 2) -> 587.84
C40: 685 | D40: 542.79 | E40: 222.97 | F40: 960 | G40: 847.53 | H40: 594.59
C41: 690 | D41: 548.33 | E41: 229.73 | F41: 965 | G41: 853.07 | H41: 601.35
C42: 695 | D42: 553.87 | E42: 236.49 | F42: 970 | G42: 858.61 | H42: 608.11
C43: 700 | D43: 559.41 | E43: 243.24 | F43: 975 | G43: 864.15 | H43: 614.86
C44: 705 | D44: 564.95 | E44: 250 | F44: 980 | G44: 869.69 | H44: 621.62
C45: 710 | D45: 570.49 | E45: 256.76 | F45: 985 | G45: 875.23 | H45: 628.38
C46: =C45+5 -> 715 | D46: 576.03 | E46: 263.51 | F46: 990 | G46: 880.77 | H46: 635.14
C47: =C46+5 -> 720 | D47: 581.57 | E47: 270.27 | F47: 995 | G47: 886.31 | H47: 641.89
C48: 725 | D48: 587.11 | E48: 277.03 | F48: 1000 | G48: 891.85 | H48: 648.65
C49: 730 | D49: 592.65 | E49: 283.78 | F49: 1005 | G49: 897.39 | H49: 655.41
C50: 735 | D50: 598.2 | E50: 290.54 | F50: 1010 | G50: 902.94 | H50: 662.16
C51: 740 | D51: 603.74 | E51: 297.3 | F51: 1015 | G51: 908.48 | H51: 668.92
C52: 745 | D52: 609.28 | E52: 304.05 | F52: 1020 | G52: 914.02 | H52: 675.68
C53: 750 | D53: 614.82 | E53: 310.81 | F53: 1025 | G53: 919.56 | H53: 682.43
C54: 755 | D54: 620.36 | E54: 317.57 | F54: 1030 | G54: 925.1 | H54: 689.19
C55: 760 | D55: 625.9 | E55: 324.32 | F55: 1035 | G55: 930.64 | H55: 695.95
C56: 765 | D56: 631.44 | E56: 331.08 | F56: 1040 | G56: 936.18 | H56: 702.7
C57: 770 | D57: 636.98 | E57: 337.84 | F57: 1045 | G57: 941.72 | H57: 709.46
C58: 775 | D58: 642.52 | E58: 344.59 | F58: 1050 | G58: 947.26 | H58: 716.22
C59: 780 | D59: 648.06 | E59: 351.35 | F59: 1055 | G59: 952.8 | H59: 722.97
C60: 785 | D60: 653.6 | E60: 358.11 | F60: 1060 | G60: 958.34 | H60: 729.73
C61: 790 | D61: 659.14 | E61: 364.86 | F61: 1065 | G61: 963.88 | H61: 736.49
C62: =F61+5 -> 1070 | D62: 969.42 | E62: 743.24 | F62: =C114+5 -> 1335 | G62: 1263.08 | H62: 1101.35
C63: 1075 | D63: 974.97 | E63: 750 | F63: 1340 | G63: 1268.62 | H63: 1108.11
C64: 1080 | D64: 980.51 | E64: 756.76 | F64: 1345 | G64: 1274.16 | H64: 1114.86
C65: 1085 | D65: 986.05 | E65: 763.51 | F65: =IF(F64+5<=OGrenz,F64+5,"") -> 1350 | G65: 1279.71 | H65: 1121.62
C66: 1090 | D66: 991.59 | E66: 770.27 | F66: =IF(F65+5<=OGrenz,F65+5,"") -> 1355 | G66: 1285.25 | H66: 1128.38
C67: 1095 | D67: 997.13 | E67: 777.03 | F67: =IF(F66+5<=OGrenz,F66+5,"") -> 1360 | G67: 1290.79 | H67: 1135.14
C68: 1100 | D68: 1002.67 | E68: 783.78 | F68: =IF(F67+5<=OGrenz,F67+5,"") -> 1365 | G68: 1296.33 | H68: 1141.89
C69: 1105 | D69: 1008.21 | E69: 790.54 | F69: =IF(F68+5<=OGrenz,F68+5,"") -> 1370 | G69: 1301.87 | H69: 1148.65
C70: 1110 | D70: 1013.75 | E70: 797.3 | F70: =IFERROR(IF(F69+5<=OGrenz,F69+5,""),"") -> 1375 | G70: 1307.41 | H70: 1155.41
C71: 1115 | D71: =ROUND(Faktor * UGrenz + ((OGrenz / (OGrenz - UGrenz)) - (UGrenz / (OGrenz - UGrenz)) * Faktor) * (C71 - UGrenz), 2) -> 1019.29 | E71: =ROUND((OGrenz / (OGrenz - UGrenz)) * (C71 - UGrenz), 2) -> 804.05 | F71: 1380 | G71: =ROUND(Faktor * UGrenz + ((OGrenz / (OGrenz - UGrenz)) - (UGrenz / (OGrenz - UGrenz)) * Faktor) * (F71 - UGrenz), 2) -> 1312.95 | H71: =ROUND((OGrenz / (OGrenz - UGrenz)) * (F71 - UGrenz), 2) -> 1162.16
C72: 1120 | D72: 1024.83 | E72: 810.81 | F72: 1385 | G72: 1318.49 | H72: 1168.92
C73: 1125 | D73: 1030.37 | E73: 817.57 | F73: 1390 | G73: 1324.03 | H73: 1175.68
C74: 1130 | D74: 1035.91 | E74: 824.32 | F74: 1395 | G74: 1329.57 | H74: 1182.43
C75: 1135 | D75: 1041.45 | E75: 831.08 | F75: 1400 | G75: 1335.11 | H75: 1189.19
C76: 1140 | D76: 1046.99 | E76: 837.84 | F76: 1405 | G76: 1340.65 | H76: 1195.95
C77: 1145 | D77: 1052.54 | E77: 844.59 | F77: 1410 | G77: 1346.19 | H77: 1202.7
C78: 1150 | D78: 1058.08 | E78: 851.35 | F78: 1415 | G78: 1351.73 | H78: 1209.46
C79: 1155 | D79: 1063.62 | E79: 858.11 | F79: 1420 | G79: 1357.28 | H79: 1216.22
C80: 1160 | D80: 1069.16 | E80: 864.86 | F80: 1425 | G80: 1362.82 | H80: 1222.97
C81: 1165 | D81: 1074.7 | E81: 871.62 | F81: 1430 | G81: 1368.36 | H81: 1229.73
C82: 1170 | D82: 1080.24 | E82: 878.38 | F82: 1435 | G82: 1373.9 | H82: 1236.49
C83: 1175 | D83: 1085.78 | E83: 885.14 | F83: 1440 | G83: 1379.44 | H83: 1243.24
C84: 1180 | D84: 1091.32 | E84: 891.89 | F84: 1445 | G84: 1384.98 | H84: 1250
C85: 1185 | D85: 1096.86 | E85: 898.65 | F85: 1450 | G85: 1390.52 | H85: 1256.76
C86: 1190 | D86: 1102.4 | E86: 905.41 | F86: 1455 | G86: 1396.06 | H86: 1263.51
C87: 1195 | D87: 1107.94 | E87: 912.16 | F87: 1460 | G87: 1401.6 | H87: 1270.27
C88: 1200 | D88: 1113.48 | E88: 918.92 | F88: 1465 | G88: 1407.14 | H88: 1277.03
C89: 1205 | D89: 1119.02 | E89: 925.68 | F89: 1470 | G89: 1412.68 | H89: 1283.78
C90: 1210 | D90: 1124.56 | E90: 932.43 | F90: 1475 | G90: 1418.22 | H90: 1290.54
C91: 1215 | D91: 1130.11 | E91: 939.19 | F91: 1480 | G91: 1423.76 | H91: 1297.3
C92: 1220 | D92: 1135.65 | E92: 945.95 | F92: 1485 | G92: 1429.3 | H92: 1304.05
C93: 1225 | D93: 1141.19 | E93: 952.7 | F93: 1490 | G93: 1434.85 | H93: 1310.81
C94: 1230 | D94: 1146.73 | E94: 959.46 | F94: 1495 | G94: 1440.39 | H94: 1317.57
C95: 1235 | D95: 1152.27 | E95: 966.22 | F95: 1500 | G95: 1445.93 | H95: 1324.32
C96: 1240 | D96: 1157.81 | E96: 972.97 | F96: 1505 | G96: 1451.47 | H96: 1331.08
C97: 1245 | D97: 1163.35 | E97: 979.73 | F97: 1510 | G97: 1457.01 | H97: 1337.84
C98: 1250 | D98: 1168.89 | E98: 986.49 | F98: 1515 | G98: 1462.55 | H98: 1344.59
C99: 1255 | D99: 1174.43 | E99: 993.24 | F99: 1520 | G99: 1468.09 | H99: 1351.35
C100: 1260 | D100: 1179.97 | E100: 1000 | F100: 1525 | G100: 1473.63 | H100: 1358.11
C101: 1265 | D101: 1185.51 | E101: 1006.76 | F101: 1530 | G101: 1479.17 | H101: 1364.86
C102: 1270 | D102: 1191.05 | E102: 1013.51 | F102: 1535 | G102: 1484.71 | H102: 1371.62
C103: 1275 | D103: =ROUND(Faktor * UGrenz + ((OGrenz / (OGrenz - UGrenz)) - (UGrenz / (OGrenz - UGrenz)) * Faktor) * (C103 - UGrenz), 2) -> 1196.59 | E103: =ROUND((OGrenz / (OGrenz - UGrenz)) * (C103 - UGrenz), 2) -> 1020.27 | F103: 1540 | G103: =ROUND(Faktor * UGrenz + ((OGrenz / (OGrenz - UGrenz)) - (UGrenz / (OGrenz - UGrenz)) * Faktor) * (F103 - UGrenz), 2) -> 1490.25 | H103: =ROUND((OGrenz / (OGrenz - UGrenz)) * (F103 - UGrenz), 2) -> 1378.38
C104: 1280 | D104: 1202.13 | E104: 1027.03 | F104: 1545 | G104: 1495.79 | H104: 1385.14
C105: 1285 | D105: 1207.68 | E105: 1033.78 | F105: 1550 | G105: 1501.33 | H105: 1391.89
C106: 1290 | D106: 1213.22 | E106: 1040.54 | F106: 1555 | G106: 1506.88 | H106: 1398.65
C107: 1295 | D107: 1218.76 | E107: 1047.3 | F107: 1560 | G107: 1512.42 | H107: 1405.41
C108: 1300 | D108: 1224.3 | E108: 1054.05 | F108: 1565 | G108: 1517.96 | H108: 1412.16
C109: 1305 | D109: 1229.84 | E109: 1060.81 | F109: 1570 | G109: 1523.5 | H109: 1418.92
C110: 1310 | D110: 1235.38 | E110: 1067.57 | F110: 1575 | G110: 1529.04 | H110: 1425.68
C111: =C110+5 -> 1315 | D111: 1240.92 | E111: 1074.32 | F111: 1580 | G111: 1534.58 | H111: 1432.43
C112: =C111+5 -> 1320 | D112: 1246.46 | E112: 1081.08 | F112: 1585 | G112: 1540.12 | H112: 1439.19
C113: =C112+5 -> 1325 | D113: 1252 | E113: 1087.84 | F113: 1590 | G113: 1545.66 | H113: 1445.95
C114: =C113+5 -> 1330 | D114: 1257.54 | E114: 1094.59 | F114: 1595 | G114: 1551.2 | H114: 1452.7
C115: =F114+5 -> 1600 | D115: 1556.74 | E115: =ROUND((OGrenz / (OGrenz - UGrenz)) * (C115 - UGrenz), 2) -> 1459.46 | F115: =C154+5 -> 1800 | G115: 1778.37 | H115: 1729.73
C116: =C115+5 -> 1605 | D116: 1562.28 | E116: =ROUND((OGrenz / (OGrenz - UGrenz)) * (C116 - UGrenz), 2) -> 1466.22 | F116: =F115+5 -> 1805 | G116: 1783.91 | H116: 1736.49
C117: =C116+5 -> 1610 | D117: 1567.82 | E117: 1472.97 | F117: =F116+5 -> 1810 | G117: 1789.45 | H117: 1743.24
C118: 1615 | D118: 1573.36 | E118: 1479.73 | F118: 1815 | G118: 1794.99 | H118: 1750
C119: 1620 | D119: 1578.9 | E119: 1486.49 | F119: 1820 | G119: 1800.53 | H119: 1756.76
C120: 1625 | D120: 1584.45 | E120: 1493.24 | F120: 1825 | G120: 1806.07 | H120: 1763.51
C121: 1630 | D121: 1589.99 | E121: 1500 | F121: 1830 | G121: 1811.62 | H121: 1770.27
C122: 1635 | D122: 1595.53 | E122: 1506.76 | F122: 1835 | G122: 1817.16 | H122: 1777.03
C123: 1640 | D123: 1601.07 | E123: 1513.51 | F123: 1840 | G123: 1822.7 | H123: 1783.78
C124: 1645 | D124: 1606.61 | E124: 1520.27 | F124: 1845 | G124: 1828.24 | H124: 1790.54
C125: 1650 | D125: 1612.15 | E125: 1527.03 | F125: 1850 | G125: 1833.78 | H125: 1797.3
C126: 1655 | D126: 1617.69 | E126: 1533.78 | F126: 1855 | G126: 1839.32 | H126: 1804.05
C127: 1660 | D127: 1623.23 | E127: 1540.54 | F127: 1860 | G127: 1844.86 | H127: 1810.81
C128: 1665 | D128: 1628.77 | E128: 1547.3 | F128: 1865 | G128: 1850.4 | H128: 1817.57
C129: 1670 | D129: 1634.31 | E129: 1554.05 | F129: 1870 | G129: 1855.94 | H129: 1824.32
C130: 1675 | D130: 1639.85 | E130: 1560.81 | F130: 1875 | G130: 1861.48 | H130: 1831.08
C131: 1680 | D131: 1645.39 | E131: 1567.57 | F131: 1880 | G131: 1867.02 | H131: 1837.84
C132: 1685 | D132: 1650.93 | E132: 1574.32 | F132: 1885 | G132: 1872.56 | H132: 1844.59
C133: 1690 | D133: 1656.47 | E133: 1581.08 | F133: 1890 | G133: 1878.1 | H133: 1851.35
C134: 1695 | D134: 1662.02 | E134: 1587.84 | F134: 1895 | G134: 1883.64 | H134: 1858.11
C135: 1700 | D135: =ROUND(Faktor * UGrenz + ((OGrenz / (OGrenz - UGrenz)) - (UGrenz / (OGrenz - UGrenz)) * Faktor) * (C135 - UGrenz), 2) -> 1667.56 | E135: 1594.59 | F135: 1900 | G135: =ROUND(Faktor * UGrenz + ((OGrenz / (OGrenz - UGrenz)) - (UGrenz / (OGrenz - UGrenz)) * Faktor) * (F135 - UGrenz), 2) -> 1889.19 | H135: 1864.86
C136: 1705 | D136: 1673.1 | E136: 1601.35 | F136: 1905 | G136: 1894.73 | H136: 1871.62
C137: 1710 | D137: 1678.64 | E137: 1608.11 | F137: 1910 | G137: 1900.27 | H137: 1878.38
C138: 1715 | D138: 1684.18 | E138: 1614.86 | F138: 1915 | G138: 1905.81 | H138: 1885.14
C139: 1720 | D139: 1689.72 | E139: =ROUND((OGrenz / (OGrenz - UGrenz)) * (C139 - UGrenz), 2) -> 1621.62 | F139: 1920 | G139: 1911.35 | H139: 1891.89
C140: =C139+5 -> 1725 | D140: 1695.26 | E140: 1628.38 | F140: 1925 | G140: 1916.89 | H140: 1898.65
C141: 1730 | D141: 1700.8 | E141: 1635.14 | F141: 1930 | G141: 1922.43 | H141: 1905.41
C142: 1735 | D142: 1706.34 | E142: 1641.89 | F142: 1935 | G142: 1927.97 | H142: 1912.16
C143: 1740 | D143: 1711.88 | E143: 1648.65 | F143: 1940 | G143: 1933.51 | H143: 1918.92
C144: 1745 | D144: 1717.42 | E144: 1655.41 | F144: 1945 | G144: 1939.05 | H144: 1925.68
C145: 1750 | D145: 1722.96 | E145: 1662.16 | F145: 1950 | G145: 1944.59 | H145: 1932.43
C146: 1755 | D146: 1728.5 | E146: 1668.92 | F146: 1955 | G146: 1950.13 | H146: 1939.19
C147: 1760 | D147: 1734.04 | E147: 1675.68 | F147: 1960 | G147: 1955.67 | H147: 1945.95
C148: 1765 | D148: 1739.59 | E148: 1682.43 | F148: 1965 | G148: 1961.21 | H148: 1952.7
C149: 1770 | D149: 1745.13 | E149: 1689.19 | F149: 1970 | G149: 1966.76 | H149: 1959.46
C150: 1775 | D150: 1750.67 | E150: 1695.95 | F150: 1975 | G150: 1972.3 | H150: 1966.22
C151: 1780 | D151: 1756.21 | E151: 1702.7 | F151: 1980 | G151: 1977.84 | H151: 1972.97
C152: 1785 | D152: 1761.75 | E152: 1709.46 | F152: 1985 | G152: 1983.38 | H152: 1979.73
C153: 1790 | D153: 1767.29 | E153: 1716.22 | F153: 1990 | G153: 1988.92 | H153: 1986.49
C154: 1795 | D154: 1772.83 | E154: 1722.97 | F154: 1995 | G154: 1994.46 | H154: 1993.24
F156: =F154+5 -> 2000 | G156: =ROUND(Faktor * UGrenz + ((OGrenz / (OGrenz - UGrenz)) - (UGrenz / (OGrenz - UGrenz)) * Faktor) * (F156 - UGrenz), 2) -> 2000 | H156: =ROUND((OGrenz / (OGrenz - UGrenz)) * (F156 - UGrenz), 2) -> 2000

Sheet Steuerung (hidden)
A1: Bezeichnung | B1: Rückgabe | C1: Wert | D1: TabellenSpalte
A2: Gewähltes Jahr | B2: =LC_Liste_Jahr -> 1 | C2: =VALUE(RIGHT(VLOOKUP(B2,Jahr,2,0),4)) -> 2023
A3: Beitragszeitraum | B3: 1 | C3: =IFERROR(VLOOKUP(B3,Jahr,D3,0),"Fehler") -> 2023 | D3: =SUMIF(Listen!$F$19:$U$20,A3,Listen!$F$20:$U$20) -> 2 | F3: F | G3: FÜ
A4: Untergrenze | B4: =B2 -> 1 | C4: =IF(B6,G4,F4) -> 520 | D4: =SUMIF(Listen!$F$19:$U$20,A4,Listen!$F$20:$U$20) -> 11 | F4: =VLOOKUP($B4,Jahr,$D4,0) -> 520 | G4: 450
A5: Obergrenze | B5: =B2 -> 1 | C5: =IF(B6,G5,F5) -> 2000 | D5: =SUMIF(Listen!$F$19:$U$20,A5,Listen!$F$20:$U$20) -> 12 | F5: =VLOOKUP($B5,Jahr,$D5,0) -> 2000 | G5: 1300
A6: Faktor | B6: FALSE | C6: 0.6922 | D6: =ROUND(IF(B6,G6/C7,F6/C7),4) -> 0.6863 | F6: 28 | G6: 30
A7: Summe SV | B7: =B2 -> 1 | C7: =VLOOKUP(B7,Jahr,D7,0) -> 40.8 | D7: =SUMIF(Listen!$F$19:$U$20,A7,Listen!$F$20:$U$20) -> 3
A8: KV allg | B8: =B2 -> 1 | C8: 14.6 | D8: =SUMIF(Listen!$F$19:$U$20,A8,Listen!$F$20:$U$20) -> 9
A9: RV | B9: =B2 -> 1 | C9: 18.6 | D9: =SUMIF(Listen!$F$19:$U$20,A9,Listen!$F$20:$U$20) -> 5
A10: AV | B10: =B2 -> 1 | C10: 2.6 | D10: =SUMIF(Listen!$F$19:$U$20,A10,Listen!$F$20:$U$20) -> 6
A11: PV | B11: =B2 -> 1 | C11: 3.4 | D11: =SUMIF(Listen!$F$19:$U$20,A11,Listen!$F$20:$U$20) -> 7
A12: Zusatz KV | B12: =B2 -> 1 | C12: 1.6 | D12: =SUMIF(Listen!$F$19:$U$20,A12,Listen!$F$20:$U$20) -> 4
A13: KV erm | B13: =B2 -> 1 | C13: =VLOOKUP(B13,Jahr,D13,0) -> 14 | D13: =SUMIF(Listen!$F$19:$U$20,A13,Listen!$F$20:$U$20) -> 10
A14: KV allg | B14: =B2 -> 1 | C14: =VLOOKUP(B14,Jahr,D14,0) -> 14.6 | D14: =SUMIF(Listen!$F$19:$U$20,A14,Listen!$F$20:$U$20) -> 9
A15: KV Beitragssatz | B15: =IF(S_BS_allg,1,2) -> 1 | C15: =IF(S_KV_allg_erm.BS=2,C13,C14) -> 14.6 | F15: S_BS_allg | G15: TRUE
A16: KV individueller ZusatzBS | B16: 2 | C16: =IFERROR(VLOOKUP(B16,KV,2,0)*100,D16) -> 0 | D16: 0.5 | E16: manuell | F16: S_BS_ermäßigt | G16: FALSE
A17: RV Knappsch. | B17: =B2 -> 1 | C17: =VLOOKUP(B17,Jahr,D17,0) -> 24.7 | D17: =SUMIF(Listen!$F$19:$U$20,A17,Listen!$F$20:$U$20) -> 8
A18: AG-Ant. Sachsen | B18: =B2 -> 1 | C18: =VLOOKUP(B18,Jahr,D18,0) -> 0.012 | D18: =SUMIF(Listen!$F$19:$U$20,A18,Listen!$F$20:$U$20) -> 13
A19: AN-Ant. Sachsen | B19: =B2 -> 1 | C19: =VLOOKUP(B19,Jahr,D19,0) -> 0.022 | D19: =SUMIF(Listen!$F$19:$U$20,A19,Listen!$F$20:$U$20) -> 14
A20: Zuschlag wg Kinderlosigkeit | B20: 2 | C20: =IF(S_PV_Zu=1,VLOOKUP(B2,Jahr,D20,0),0) -> 0 | D20: =SUMIF(Listen!$F$19:$U$20,A20,Listen!$F$20:$U$20) -> 16 | F20: PV_Abschlag | G20: 2
A21: U1 - Krankheitsfall | B21: FALSE | C21: 0 | F21: PV_Abschlagshöhe | H21: =IF(BS_PV_Ab="",0,BS_PV_Ab) -> 0
A22: U2 - Mutterschaft | B22: FALSE | C22: 0
A23: Insolvenzgeld | B23: FALSE | C23: =IF(S_U3=TRUE,VLOOKUP(B5,Jahr,D23,0),0) -> 0 | D23: =SUMIF(Listen!$F$19:$U$20,A23,Listen!$F$20:$U$20) -> 15
A25: Frei KV/PV
A26: PV Sachsen | B26: FALSE
A27: Frei RV | B27: FALSE
A28: RV nur AG | B28: FALSE
A29: RV Knappsch. | B29: FALSE
A30: nur AV | B30: 0
A31: Frei AV | B31: FALSE
A32: Frei AV_AN | B32: FALSE
A34: Sonderfall 1 | B34: FALSE
A35: Sonderfall 2 | B35: FALSE
A36: Sonderfall2 Option | B36: =IF(S_Sonder_2_Opt1,1,2) -> 2 | F36: S_Sonder_2_Opt1 | I36: =IF(S_Sonder_2_Opt1,1,2) -> 2
A37: Mehrfachbesch. | B37: FALSE | F37: S_Sonder_2_Opt2
A38: Sonderfall 4 | B38: FALSE
A39: Azubi
A41: Auswahl Sonderfall | B41: =INDIRECT("Steuerung!A"&58+nAuswahl_Sonder) -> S2_O1_O2_Zusatz | C41: =SUM(C62:C70) -> 2
A42: Auswahl KV | C42: =SUM(C73:C75) -> 12
A43: Auswahl PV | C43: =SUM(C78:C80) -> 20
A44: Auswahl RV | C44: =SUM(C83:C87) -> 30
A45: Auswahl AV | C45: =SUM(C90:C92) -> 40
A46: PV Kinderzuschlag | B46: =IF(AND(S_KV_PV_frei<>TRUE,S_PV_Zu=1),TRUE) -> FALSE | C46: =IF(B46,50,"") -> 
A49: Opt_Sond2_Tage
A50: Opt_Sond2_Stunden
A51: Opt_Sond2_Wostu
A52: Opt_Sond2_Entgelt
A53: AE
A54: Sond3_Entgelt
A55: Sond3_Sonstentgelt
A56: Sond3_Quotient | B56: 0.2727272727
A58: S2_O1_O2 | B58: =IF(S_Sonder_2_Opt=1," Tagen"," geleist. h ") -> geleist. h
A59: Anzahl_S2_O1_O2 | B59: =IF(S_Sonder_2_Opt=1,VALUE(B49),VALUE(B50)) -> 0
A60: S2_O1_O2_Zusatz | B60: =IF(S_Sonder_2_Opt=2,"/ "&VALUE(B51)&" h wtl. Regel-AZ","") -> / 0 h wtl. Regel-AZ | H60: S_Sonder_1 | I60: S_Sonder_2 | J60: S_Mehrfach | K60: S_Sonder_4
H61: =S_Sonder_1 -> FALSE | I61: =S_Sonder_2 -> FALSE | J61: =S_Mehrfach -> FALSE | K61: =S_Sonder_4 -> FALSE
A62: AE ohne Sonder | B62: =IF(AND(S_Sonder_1<>TRUE,S_Sonder_2<>TRUE,S_Mehrfach<>TRUE,S_Sonder_4<>TRUE),TRUE) -> TRUE | C62: =IF(B62,1,"") -> 1 | E62: 1 | F62: OHNE | H62: F | I62: F | J62: F | K62: F
A63: Mehrfachbesch. | B63: =IF(AND(S_Sonder_1<>TRUE,S_Sonder_2<>TRUE,S_Mehrfach=TRUE,S_Sonder_4<>TRUE),TRUE) -> FALSE | C63: =IF(B63,2,"") ->  | E63: 2 | F63: Mehrfach | H63: F | I63: F | J63: W | K63: F
A64: Teilmonate | B64: =IF(AND(S_Sonder_1<>TRUE,S_Sonder_2=TRUE,S_Mehrfach<>TRUE,S_Sonder_4<>TRUE),TRUE) -> FALSE | C64: =IF(B64,3,"") ->  | E64: 3 | F64: Teil monat | H64: F | I64: W | J64: F | K64: F
A65: mit Einmalzahlung | B65: =IF(AND(S_Sonder_1<>TRUE,S_Sonder_2<>TRUE,S_Mehrfach<>TRUE,S_Sonder_4=TRUE),TRUE) -> FALSE | C65: =IF(B65,4,"") ->  | E65: 4 | F65: Einmal zahlung | H65: F | I65: F | J65: F | K65: W
A66: Teilmonat bei Mehrfach | B66: =IF(AND(S_Sonder_1<>TRUE,S_Sonder_2=TRUE,S_Mehrfach=TRUE,S_Sonder_4<>TRUE),TRUE) -> FALSE | C66: =IF(B66,5,"") ->  | E66: 5 | F66: Teilmonat bei Mehrfach beschäftigung | H66: F | I66: W | J66: W | K66: F
A67: Einmalzahlung bei Teilmonat | B67: =IF(AND(S_Sonder_1<>TRUE,S_Sonder_2=TRUE,S_Mehrfach<>TRUE,S_Sonder_4=TRUE),TRUE) -> FALSE | C67: =IF(B67,6,"") ->  | E67: 6 | F67: Einmalzahlung bei Teilmonat | H67: F | I67: W | J67: F | K67: W
A68: AE unter UGrenze | B68: =IF(AND(S_Sonder_1=TRUE,S_Sonder_2<>TRUE,S_Mehrfach<>TRUE,S_Sonder_4<>TRUE),TRUE) -> FALSE | C68: =IF(B68,7,"") ->  | E68: 7 | F68: unter UnterGrenze | H68: W | I68: F | J68: F | K68: F
A69: AE unter UGrenze und Teilmonat | B69: =IF(AND(S_Sonder_1=TRUE,S_Sonder_2=TRUE,S_Mehrfach<>TRUE,S_Sonder_4<>TRUE),TRUE) -> FALSE | C69: =IF(B69,8,"") ->  | E69: 8 | F69: unter UnterGrenze und Teilmonat | H69: W | I69: W | J69: F | K69: F
C70: =SUM(C62:C69) -> 1 | E70: 0 | F70: nicht zulässig
A73: KV ohne Sonder | B73: =IF(S_KV_PV_frei<>TRUE,TRUE) -> TRUE | C73: =IF(B73,10,"") -> 10
A74: KV frei | B74: =IF(S_KV_PV_frei=TRUE,TRUE) -> FALSE | C74: =IF(B74,11,"") -> 
A75: KV allg / ermäßigt | B75: =IF((S_KV_PV_frei<>TRUE),TRUE) -> TRUE | C75: =IF(B75,S_KV_allg_erm.BS+1,"") -> 2
A78: PV ohne Sonder | B78: =IF(AND(S_KV_PV_frei<>TRUE,S_PV_Sachsen<>TRUE),TRUE) -> TRUE | C78: =IF(B78,20,"") -> 20
A79: PV frei | B79: =IF(S_KV_PV_frei=TRUE,TRUE) -> FALSE | C79: =IF(B79,21,"") -> 
A80: PV Sachsen | B80: =IF(AND(S_KV_PV_frei<>TRUE,S_PV_Sachsen=TRUE),TRUE) -> FALSE | C80: =IF(B80,22,"") -> 
A83: RV ohne Sonder | B83: =IF(AND(S_RV_frei<>TRUE,S_RV_aus_t.E.<>TRUE,S_RV_Knapp<>TRUE),TRUE) -> TRUE | C83: =IF(B83,30,"") -> 30
A84: RV frei | B84: =IF(S_RV_frei=TRUE,TRUE) -> FALSE | C84: =IF(B84,31,"") -> 
A85: RV nur AG | B85: =IF(AND(S_RV_frei<>TRUE,S_RV_aus_t.E.=TRUE,S_RV_Knapp<>TRUE),TRUE) -> FALSE | C85: =IF(B85,32,"") -> 
A86: RV Knappschaft | B86: =IF(AND(S_RV_frei<>TRUE,S_RV_aus_t.E.<>TRUE,S_RV_Knapp=TRUE),TRUE) -> FALSE | C86: =IF(B86,33,"") -> 
A87: RV nur AG und Knappschaft | B87: =IF(AND(S_RV_frei<>TRUE,S_RV_aus_t.E.=TRUE,S_RV_Knapp=TRUE),TRUE) -> FALSE | C87: =IF(B87,34,"") -> 
A90: AV ohne Sonder | B90: =IF(AND(S_AV_frei<>TRUE,S_AV_frei_AN<>TRUE),TRUE) -> TRUE | C90: =IF(B90,40,"") -> 40
A91: AV frei | B91: =IF(S_AV_frei=TRUE,TRUE) -> FALSE | C91: =IF(B91,41,"") ->  | F91: 1200 | G91: 18.6 | H91: =F91*G91/100 -> 223.2 | I91: =H91/2 -> 111.6
A92: Frei AV_AN | B92: =IF(S_AV_frei_AN=TRUE,TRUE) -> FALSE | C92: =IF(B92,42,"") ->  | F92: 384.54 | G92: 24.7 | H92: =F92*G92/100 -> 94.98138 | I92: =H92/2 -> 47.49069
H94: AG = ÜE * Satz - ((ÜE * Satz * Faktor)- (AE * Satz))
H96: ÜE * Satz | I96: ÜE * Satz * Faktor | J96: AE * Satz | K96: ((ÜE * Satz * Faktor)- (AE * Satz)) | L96: AG
F97: ÜE | G97: 384.54
F98: AE | G98: 520
F99: Satz | G99: 0.247
F100: Faktor | G100: 2
H101: =G97*G99 -> 94.98138 | I101: =G97*G99*G100 -> 189.96276 | J101: =G98*G99 -> 128.44 | K101: =I101-J101 -> 61.52276 | L101: =H101-K101 -> 33.45862

Sheet Listen (hidden)
B1: Stand: | C1: 2022-12-20 | G1: Jahr | I1: Zusatz KV | J1: RV | K1: AV | L1: PV | M1: RV Knappsch. | N1: KV allg | O1: KV erm | P1: Untergrenze | Q1: Obergrenze | R1: AG-Ant. Sachsen | S1: AN-Ant. Sachsen | T1: Insolvenzgeld | U1: Zuschlag wg Kinderlosigkeit | W1: Mindest lohn | X1: x 130 | Y1: Gerinfügig keits grenze | AA1: SUCH | AB1: SFall-Nr | AC1: Zeile | AD1: Spalte | AE1: Text | AF1: SFall | AH1: SUCH | AI1: SFall-Nr | AJ1: Zeile | AK1: Spalte | AL1: Text | AM1: SFall | AP1: Name | AQ1: Bezug | AR1: Blatt | AS1: Spalte | AT1: Zeile
B2: KV | AA2: =AB2*100+AC2 -> 105 | AB2: 1 | AC2: 5 | AD2: 4 | AE2: Monatliches Arbeitsentgelt: | AF2: ohne Sonderfall | AP2: n_W5_Bez | AQ2: =Dialog!$D$5 | AR2: =MID(AQ2,2,FIND("!",AQ2,1)-2) -> Dialog | AS2: =MID(AQ2,FIND("!",AQ2,1)+2,FIND("$",AQ2,FIND("!",AQ2,1)+2)-FIND("!",AQ2,1)-2) -> D | AT2: =VALUE(MID(AQ2,FIND("$",AQ2,FIND("!",AQ2,1)+2)+1,5)) -> 5
B3: 1 | C3: manuelle Eingabe | F3: 1 | G3: 2023 | H3: =I3+J3+K3+L3+N3 -> 40.8 | I3: 1.6 | J3: 18.6 | K3: 2.6 | L3: 3.4 | M3: 24.7 | N3: 14.6 | O3: 14 | P3: =Y3 -> 520 | Q3: 2000 | R3: 0.012 | S3: 0.022 | T3: 0.0006 | U3: 0.6 | W3: 12 | X3: =130*W3 -> 1560 | Y3: =ROUNDUP(X3/3,0) -> 520 | AA3: 107 | AB3: 1 | AC3: 7 | AD3: 4 | AE3: Übergangsbereichsentgelt: | AF3: ohne Sonderfall | AP3: n_W5 | AQ3: =Dialog!$E$5 | AR3: Dialog | AS3: E | AT3: 5
B4: 2 | C4: 0 | F4: =F3+1 -> 2 | G4: 2022 | H4: =I4+J4+K4+L4+N4 -> 39.95 | I4: 1.3 | J4: 18.6 | K4: 2.4 | L4: 3.05 | M4: 24.7 | N4: 14.6 | O4: 14 | P4: 520 | Q4: 1600 | R4: 0.01025 | S4: 0.02025 | T4: 0.0009 | U4: 0.35 | AA4: 109 | AB4: 1 | AC4: 9 | AD4: 4 | AE4: BE Arbeitnehmer: | AF4: ohne Sonderfall | AP4: KV_Text | AQ4: =Dialog!$G$5 | AR4: Dialog | AS4: G | AT4: 5
B5: 3 | C5: 0.003 | F5: 3 | G5: 2021 | H5: 39.95 | I5: 1.3 | J5: 18.6 | K5: 2.4 | L5: 3.05 | M5: 24.7 | N5: 14.6 | O5: 14 | P5: 450 | Q5: 1300 | R5: 0.01025 | T5: 0.0012 | U5: 0.25 | AA5: 205 | AB5: 2 | AC5: 5 | AD5: 4 | AE5: Arbeitsentgelt für diese Tätigkeit | AF5: Mehrfachbeschäftigung | AP5: S_Sonder_2_Stunden_Bez | AQ5: =Dialog!$K$5 | AR5: Dialog | AS5: K | AT5: 5
B6: 4 | C6: 0.004 | F6: 4 | G6: 2020 | H6: 39.75 | I6: 1.1 | J6: 18.6 | K6: 2.4 | L6: 3.05 | M6: 24.7 | N6: 14.6 | O6: 14 | P6: 450 | Q6: 1300 | R6: 0.01025 | T6: 0.0006 | U6: 0.25 | W6: Beitragsabschlag PV | AA6: 207 | AB6: 2 | AC6: 7 | AD6: 4 | AE6: Übergangsbereichsentgelt für diese Tätigkeit: | AF6: Mehrfachbeschäftigung | AP6: S_Sonder_2_Tage_Bez | AQ6: =Dialog!$K$5 | AR6: Dialog | AS6: K | AT6: 5
B7: 5 | C7: 0.005 | F7: 5 | G7: 2019 | H7: 39.65 | I7: 0.9 | J7: 18.6 | K7: 2.5 | L7: 3.05 | M7: 24.7 | N7: 14.6 | O7: 14 | P7: 450 | Q7: 1300 | R7: 0.01025 | T7: 0.0006 | U7: 0.25 | AA7: 209 | AB7: 2 | AC7: 9 | AD7: 4 | AE7: BE Arbeitnehmer für diese Tätigkeit: | AF7: Mehrfachbeschäftigung | AP7: S_Sonder_2_Stunden | AQ7: =Dialog!$L$5 | AR7: Dialog | AS7: L | AT7: 5
B8: 6 | C8: 0.008 | F8: 6 | G8: 2018 | H8: 39.75 | I8: 1 | J8: 18.6 | K8: 3 | L8: 2.55 | M8: 24.7 | N8: 14.6 | O8: 14 | P8: 450 | Q8: 850 | R8: 0.00775 | T8: 0.0006 | U8: 0.25 | W8: 1 | X8: 0.25 | AA8: 221 | AB8: 2 | AC8: 21 | AD8: 11 | AE8: gesamtes monatliches Arbeitsentgelt: | AF8: Mehrfachbeschäftigung | AP8: S_Sonder_2_Tage | AQ8: =Dialog!$L$5 | AR8: Dialog | AS8: L | AT8: 5
B9: 7 | C9: 0.0084 | F9: 7 | G9: 2017 | H9: 39.95 | I9: 1.1 | J9: 18.7 | K9: 3 | L9: 2.55 | M9: 24.8 | N9: 14.6 | O9: 14 | P9: 450 | Q9: 850 | R9: 0.00775 | T9: 0.0009 | U9: 0.25 | W9: 2 | X9: 0.5 | AA9: 222 | AB9: 2 | AC9: 22 | AD9: 11 | AE9: gesamtes monatliches Übergangsbereichsentgelt: | AF9: Mehrfachbeschäftigung | AP9: n_W7_Bez | AQ9: =Dialog!$D$7 | AR9: Dialog | AS9: D | AT9: 7
B10: 8 | C10: 0.0088 | F10: 8 | G10: 2016 | H10: 39.75 | I10: 1.1 | J10: 18.7 | K10: 3 | L10: 2.35 | M10: 24.8 | N10: 14.6 | O10: 14 | P10: 450 | Q10: 850 | R10: 0.00675 | S10: 0.01675 | T10: 0.0012 | U10: 0.25 | W10: 3 | X10: 0.75 | AA10: =AB10*100+AC10 -> 305 | AB10: 3 | AC10: 5 | AD10: 4 | AE10: Teilmonatsentgelt: | AF10: teilmonatl. Arbeitsentgelt | AP10: n_W7 | AQ10: =Dialog!$E$7 | AR10: Dialog | AS10: E | AT10: 7
B11: 9 | C11: 0.009 | F11: 9 | G11: 2015 | H11: 39.55 | I11: 0.9 | J11: 18.7 | K11: 3 | L11: 2.35 | M11: 24.8 | N11: 14.6 | O11: 14 | P11: 450 | Q11: 850 | R11: 0.00675 | S11: 0.01675 | T11: 0.0015 | U11: 0.25 | W11: 4 | X11: 1 | AA11: 307 | AB11: 3 | AC11: 7 | AD11: 4 | AE11: Teil-Übergangsbereichsentgelt: | AF11: teilmonatl. Arbeitsentgelt | AP11: RV_Text | AQ11: =Dialog!$G$7 | AR11: Dialog | AS11: G | AT11: 7
B12: 10 | C12: 0.0098 | AA12: 309 | AB12: 3 | AC12: 9 | AD12: 4 | AE12: Teil-BE Arbeitnehmer: | AF12: teilmonatl. Arbeitsentgelt | AP12: S_Sonder_2_WoStunden_Bez | AQ12: =Dialog!$K$7 | AR12: Dialog | AS12: K | AT12: 7
B13: 11 | C13: 0.0109 | AA13: 321 | AB13: 3 | AC13: 21 | AD13: 11 | AE13: fiktives monatliches Arbeitsentgelt: | AF13: teilmonatl. Arbeitsentgelt | AP13: S_Sonder_2_WoStunden | AQ13: =Dialog!$L$7 | AR13: Dialog | AS13: L | AT13: 7
B14: 12 | C14: 0.011 | AA14: 322 | AB14: 3 | AC14: 22 | AD14: 11 | AE14: fiktives monatliches Übergangsbereichsentgelt: | AF14: teilmonatl. Arbeitsentgelt | AP14: n_W9_Bez | AQ14: =Dialog!$D$9 | AR14: Dialog | AS14: D | AT14: 9
B15: 13 | C15: 0.0115 | AA15: 405 | AB15: 4 | AC15: 5 | AD15: 4 | AE15: Arbeitsentgelt gesamt: | AF15: monatliches Arbeitsentgelt plus Einmalzahlung | AP15: n_W9 | AQ15: =Dialog!$E$9 | AR15: Dialog | AS15: E | AT15: 9
B16: 14 | C16: 0.012 | AA16: 407 | AB16: 4 | AC16: 7 | AD16: 4 | AE16: Übergangsbereichsentgelt gesamt: | AF16: monatliches Arbeitsentgelt plus Einmalzahlung | AP16: AV_Text | AQ16: =Dialog!$G$9 | AR16: Dialog | AS16: G | AT16: 9
B17: 15 | C17: 0.0125 | AA17: =AB17*100+AC17 -> 409 | AB17: 4 | AC17: 9 | AD17: 4 | AE17: BE Arbeitnehmer gesamt: | AF17: monatliches Arbeitsentgelt plus Einmalzahlung | AP17: n_W11_Bez | AQ17: =Dialog!$D$11 | AR17: Dialog | AS17: D | AT17: 11
B18: 16 | C18: 0.0129 | AA18: =AB18*100+AC18 -> 421 | AB18: 4 | AC18: 21 | AD18: 11 | AE18: monatliches Arbeitsentgelt: | AF18: monatliches Arbeitsentgelt plus Einmalzahlung | AP18: n_W11 | AQ18: =Dialog!$E$11 | AR18: Dialog | AS18: E | AT18: 11
B19: 17 | C19: 0.013 | F19: Auswahl | G19: Beitragszeitraum | H19: Summe SV | I19: Zusatz KV | J19: RV | K19: AV | L19: PV | M19: RV Knappsch. | N19: KV allg | O19: KV erm | P19: Untergrenze | Q19: Obergrenze | R19: AG-Ant. Sachsen | S19: AN-Ant. Sachsen | T19: Insolvenzgeld | U19: Zuschlag wg Kinderlosigkeit | AA19: =AB19*100+AC19 -> 422 | AB19: 4 | AC19: 22 | AD19: 11 | AE19: Einmalzahlung | AF19: monatliches Arbeitsentgelt plus Einmalzahlung | AP19: PV_Text | AQ19: =Dialog!$G$11 | AR19: Dialog | AS19: G | AT19: 11
B20: 18 | C20: 0.0135 | F20: 1 | G20: =F20+1 -> 2 | H20: =G20+1 -> 3 | I20: 4 | J20: 5 | K20: 6 | L20: 7 | M20: 8 | N20: 9 | O20: 10 | P20: 11 | Q20: 12 | R20: 13 | S20: 14 | T20: 15 | U20: 16 | AA20: 505 | AB20: 5 | AC20: 5 | AD20: 4 | AE20: Arbeitsentgelt für das zu bewertende BV: | AF20: Mehrfachbeschäftigung mit teilmonatl. Arbeitsentgelt | AP20: S_Sonder_2_Stunden_B_Bez | AQ20: =Dialog!$K$11 | AR20: Dialog | AS20: K | AT20: 11
B21: 19 | C21: 0.014 | AA21: 507 | AB21: 5 | AC21: 7 | AD21: 4 | AE21: Übergangsbereichsentgelt für dieses BV: | AF21: Mehrfachbeschäftigung mit teilmonatl. Arbeitsentgelt | AP21: S_Sonder_2_Stunden_B | AQ21: =Dialog!$L$11 | AR21: Dialog | AS21: L | AT21: 11
B22: 20 | C22: 0.0144 | AA22: =AB22*100+AC22 -> 509 | AB22: 5 | AC22: 9 | AD22: 4 | AE22: BE Arbeitnehmer für dieses BV: | AF22: Mehrfachbeschäftigung mit teilmonatl. Arbeitsentgelt | AP22: n_W13_Bez | AQ22: =Dialog!$D$13 | AR22: Dialog | AS22: D | AT22: 13
B23: 21 | C23: 0.0145 | AA23: =AB23*100+AC23 -> 521 | AB23: 5 | AC23: 21 | AD23: 11 | AE23: gesamtes monatliches Übergangsbereichsentgelt: | AF23: Mehrfachbeschäftigung mit teilmonatl. Arbeitsentgelt | AP23: n_W13 | AQ23: =Dialog!$E$13 | AR23: Dialog | AS23: E | AT23: 13
B24: 22 | C24: 0.0148 | AA24: =AB24*100+AC24 -> 522 | AB24: 5 | AC24: 22 | AD24: 11 | AE24: gesamtes fiktives Arbeitsentgelt: | AF24: Mehrfachbeschäftigung mit teilmonatl. Arbeitsentgelt | AP24: S_Text | AQ24: =Dialog!$G$13 | AR24: Dialog | AS24: G | AT24: 13
B25: 23 | C25: 0.0149 | AA25: =AB25*100+AC25 -> 523 | AB25: 5 | AC25: 23 | AD25: 11 | AE25: gesamtes fiktives Übergangsbereichsentgelt: | AF25: Mehrfachbeschäftigung mit teilmonatl. Arbeitsentgelt | AP25: S_Sonder_2_WoStunden_Bez_B | AQ25: =Dialog!$K$13 | AR25: Dialog | AS25: K | AT25: 13
B26: 24 | C26: 0.015 | AA26: 605 | AB26: 6 | AC26: 5 | AD26: 4 | AE26: Arbeitsentgelt gesamt: | AF26: teilmonatl. Arbeitsentgelt plus Einmalzahlung | AP26: S_Sonder_2_WoStunden_B | AQ26: =Dialog!$L$13 | AR26: Dialog | AS26: L | AT26: 13
B27: 25 | C27: 0.0154 | AA27: 607 | AB27: 6 | AC27: 7 | AD27: 4 | AE27: Übergangsbereichsentgelt gesamt: | AF27: teilmonatl. Arbeitsentgelt plus Einmalzahlung | AP27: n_W14_Bez | AQ27: =Dialog!$D$14 | AR27: Dialog | AS27: D | AT27: 14
B28: 26 | C28: 0.0155 | AA28: 609 | AB28: 6 | AC28: 9 | AD28: 4 | AE28: BE Arbeitnehmer gesamt: | AF28: teilmonatl. Arbeitsentgelt plus Einmalzahlung | AP28: n_W14 | AQ28: =Dialog!$E$14 | AR28: Dialog | AS28: E | AT28: 14
B29: 27 | C29: 0.0158 | AA29: 621 | AB29: 6 | AC29: 21 | AD29: 11 | AE29: fiktives monatliches Arbeitsentgelt: | AF29: teilmonatl. Arbeitsentgelt plus Einmalzahlung | AP29: nKV_ges | AQ29: =Dialog!$C$18 | AR29: Dialog | AS29: C | AT29: 18
B30: 28 | C30: 0.0159 | AA30: 622 | AB30: 6 | AC30: 22 | AD30: 11 | AE30: fiktives monatliches Arbeitsentgelt gesamt: | AF30: teilmonatl. Arbeitsentgelt plus Einmalzahlung | AP30: nKV_AG | AQ30: =Dialog!$E$18 | AR30: Dialog | AS30: E | AT30: 18
B31: 29 | C31: 0.016 | AA31: 623 | AB31: 6 | AC31: 23 | AD31: 11 | AE31: Teilmonatsentgelt: | AF31: teilmonatl. Arbeitsentgelt plus Einmalzahlung | AP31: nKV_AN | AQ31: =Dialog!$G$18 | AR31: Dialog | AS31: G | AT31: 18
B32: 30 | C32: 0.0169 | AA32: 624 | AB32: 6 | AC32: 24 | AD32: 11 | AE32: Einmalzahlung: | AF32: teilmonatl. Arbeitsentgelt plus Einmalzahlung | AP32: nKV_Satz | AQ32: =Dialog!$I$18 | AR32: Dialog | AS32: I | AT32: 18
B33: 31 | C33: 0.017 | AA33: 705 | AB33: 7 | AC33: 5 | AD33: 4 | AE33: Monatliches Arbeitsentgelt: | AF33: monatl. Arbeitseinkommen kleiner Untergrenze | AP33: nKV_Zu_ges | AQ33: =Dialog!$C$26 | AR33: Dialog | AS33: C | AT33: 20
B34: 32 | C34: 0.0175 | AA34: 707 | AB34: 7 | AC34: 7 | AD34: 4 | AE34: Übergangsbereichsentgelt: | AF34: monatl. Arbeitseinkommen kleiner Untergrenze | AP34: nKV_Zu_AG | AQ34: =Dialog!$E$26 | AR34: =MID(AQ34,2,FIND("!",AQ34,1)-2) -> Dialog | AS34: =MID(AQ34,FIND("!",AQ34,1)+2,FIND("$",AQ34,FIND("!",AQ34,1)+2)-FIND("!",AQ34,1)-2) -> E | AT34: 20
B35: 33 | C35: 0.0177 | AA35: 709 | AB35: 7 | AC35: 9 | AD35: 4 | AE35: BE Arbeitnehmer: | AF35: monatl. Arbeitseinkommen kleiner Untergrenze | AP35: nKV_Zu_AN | AQ35: =Dialog!$G$26 | AR35: Dialog | AS35: G | AT35: 20
B36: 34 | C36: 0.018 | AA36: 805 | AB36: 8 | AC36: 5 | AD36: 4 | AE36: Teilmonatsentgelt: | AF36: monatl. Arbeitseinkommen kleiner Untergrenze und mit teilmonatl. Arbeitsentgelt | AP36: nKV_Zu_Satz | AQ36: =Dialog!$I$26 | AR36: Dialog | AS36: I | AT36: 20
B37: 35 | C37: 0.0189 | AA37: 807 | AB37: 8 | AC37: 7 | AD37: 4 | AE37: Teil-Übergangsbereichsentgelt: | AF37: monatl. Arbeitseinkommen kleiner Untergrenze und mit teilmonatl. Arbeitsentgelt | AP37: nRV_ges | AQ37: =Dialog!$C$20 | AR37: Dialog | AS37: C | AT37: 22
B38: 36 | C38: 0.019 | AA38: 809 | AB38: 8 | AC38: 9 | AD38: 4 | AE38: Teil-BE Arbeitnehmer: | AF38: monatl. Arbeitseinkommen kleiner Untergrenze und mit teilmonatl. Arbeitsentgelt | AP38: nRV_AG | AQ38: =Dialog!$E$20 | AR38: Dialog | AS38: E | AT38: 22
B39: 37 | C39: 0.02 | AA39: 809 | AB39: 8 | AC39: 21 | AD39: 11 | AE39: fiktives monatliches Arbeitsentgelt: | AF39: monatl. Arbeitseinkommen kleiner Untergrenze und mit teilmonatl. Arbeitsentgelt | AP39: nRV_AN | AQ39: =Dialog!$G$20 | AR39: Dialog | AS39: G | AT39: 22
B40: 38 | C40: 0.022 | AA40: 811 | AB40: 8 | AC40: 22 | AD40: 11 | AE40: fiktives monatliches Übergangsbereichsentgelt: | AF40: monatl. Arbeitseinkommen kleiner Untergrenze und mit teilmonatl. Arbeitsentgelt | AP40: nRV_Satz | AQ40: =Dialog!$I$20 | AR40: Dialog | AS40: I | AT40: 22
AA41: 914 | AB41: 9 | AC41: 24 | AD41: 11 | AE41: Beitragsbemessungsgrundlage für RV: | AF41: - | AP41: nAV_ges | AQ41: =Dialog!$C$22 | AR41: Dialog | AS41: C | AT41: 24
AA42: 3214 | AB42: 32 | AC42: 14 | AE42: Beitragsbemessungsgrundlage für RV: | AF42: RV-Beitrag aus tatsächlichem Arbeitsentgelt | AP42: nAV_AG | AQ42: =Dialog!$E$22 | AR42: Dialog | AS42: E | AT42: 24
AA43: 3214 | AB43: 32 | AC43: 14 | AE43: Beitragsbemessungsgrundlage für RV: | AF43: RV-Beitrag aus tatsächlichem Arbeitsentgelt | AP43: nAV_AN | AQ43: =Dialog!$G$22 | AR43: Dialog | AS43: G | AT43: 24
AA44: 3414 | AB44: 34 | AC44: 14 | AE44: Beitragsbemessungsgrundlage für RV: | AF44: knappschaftl. RV-Beitrag aus tats. Arbeitsentgelt | AP44: nAV_Satz | AQ44: =Dialog!$I$22 | AR44: Dialog | AS44: I | AT44: 24
AA45: 3414 | AB45: 34 | AC45: 14 | AE45: Beitragsbemessungsgrundlage für RV: | AF45: knappschaftl. RV-Beitrag aus tats. Arbeitsentgelt | AP45: nPV_ges | AQ45: =Dialog!$C$24 | AR45: Dialog | AS45: C | AT45: 26
AP46: nPV_AG | AQ46: =Dialog!$E$24 | AR46: Dialog | AS46: E | AT46: 26
AP47: nPV_AN | AQ47: =Dialog!$G$24 | AR47: Dialog | AS47: G | AT47: 26
AP48: nPV_Satz | AQ48: =Dialog!$I$24 | AR48: Dialog | AS48: I | AT48: 26
AP49: nPV_Zu_ges | AQ49: =Dialog!$C$28 | AR49: Dialog | AS49: C | AT49: =VALUE(MID(AQ49,FIND("$",AQ49,FIND("!",AQ49,1)+2)+1,5)) -> 28
AP50: nPV_Zu_AG | AQ50: =Dialog!$E$28 | AR50: Dialog | AS50: E | AT50: 28
AP51: nPV_Zu_AN | AQ51: =Dialog!$G$28 | AR51: Dialog | AS51: G | AT51: 28
AP52: nPV_Zu_Satz | AQ52: =Dialog!$I$28 | AR52: Dialog | AS52: I | AT52: 28
AP53: nU1_ges | AQ53: =Dialog!$C$32 | AR53: Dialog | AS53: C | AT53: 32
AP54: nU1_AG | AQ54: =Dialog!$E$32 | AR54: Dialog | AS54: E | AT54: 32
AP55: nU1_Satz | AQ55: =Dialog!$I$32 | AR55: Dialog | AS55: I | AT55: 32
AP56: nU2_ges | AQ56: =Dialog!$C$33 | AR56: Dialog | AS56: C | AT56: 33
AP57: nU2_AG | AQ57: =Dialog!$E$33 | AR57: Dialog | AS57: E | AT57: 33
AP58: nU2_Satz | AQ58: =Dialog!$I$33 | AR58: Dialog | AS58: I | AT58: 33
AP59: nU3_ges | AQ59: =Dialog!$C$34 | AR59: Dialog | AS59: C | AT59: 34
AP60: nU3_AG | AQ60: =Dialog!$E$34 | AR60: Dialog | AS60: E | AT60: 34
AP61: nU3_Satz | AQ61: =Dialog!$I$34 | AR61: Dialog | AS61: I | AT61: 34
AP62: Druckbereich | AQ62: =Listen!$A$1:$A$83 | AR62: Listen | AS62: A
AP63: Liste_Bezeichnung | AQ63: =Listen!$AA$1:$AJ$44 | AR63: Listen | AS63: AA
AP64: KV | AQ64: =Listen!$B$3:$C$83 | AR64: Listen | AS64: B
AP65: drop_KV | AQ65: =Listen!$C$3:$C$44 | AR65: Listen | AS65: C
AP66: Jahr | AQ66: =Listen!$F$3:$U$6 | AR66: =MID(AQ66,2,FIND("!",AQ66,1)-2) -> Listen | AS66: =MID(AQ66,FIND("!",AQ66,1)+2,FIND("$",AQ66,FIND("!",AQ66,1)+2)-FIND("!",AQ66,1)-2) -> F
AP67: drop_Jahr | AQ67: =Listen!$G$3:$G$3 | AR67: Listen | AS67: G
AP68: Gew_Jahr | AQ68: =Steuerung!$C$2 | AR68: Steuerung | AS68: C | AT68: 2
AP69: LC_Liste_Jahr | AQ69: =Steuerung!$B$3 | AR69: Steuerung | AS69: B | AT69: 3
AP70: Zeitraum | AQ70: =Steuerung!$C$3 | AR70: Steuerung | AS70: C | AT70: 3
AP71: UGrenz | AQ71: =Steuerung!$C$4 | AR71: Steuerung | AS71: C | AT71: 4
AP72: OGrenz | AQ72: =Steuerung!$C$5 | AR72: Steuerung | AS72: C | AT72: 5
AP73: Faktor | AQ73: =Steuerung!$C$6 | AR73: Steuerung | AS73: C | AT73: 6
AP74: nRV_Satz_Jahr | AQ74: =Steuerung!$C$9 | AR74: Steuerung | AS74: C | AT74: 9
AP75: nAV_Satz_Jahr | AQ75: =Steuerung!$C$10 | AR75: Steuerung | AS75: C | AT75: 10
AP76: nPV_Satz_Jahr | AQ76: =Steuerung!$C$11 | AR76: Steuerung | AS76: C | AT76: 11
AP77: S_KV_allg_erm.BS | AQ77: =Steuerung!$B$15 | AR77: Steuerung | AS77: B | AT77: 15
AP78: BS_KV_allg | AQ78: =Steuerung!$C$15 | AR78: Steuerung | AS78: C | AT78: 15
AP79: S_BS_allg | AQ79: =Steuerung!$G$15 | AR79: Steuerung | AS79: G | AT79: 15
AP80: LC_Liste_KV_Zu | AQ80: =Steuerung!$B$16 | AR80: Steuerung | AS80: B | AT80: 16
AP81: BS_KV_Zu | AQ81: =Steuerung!$C$16 | AR81: Steuerung | AS81: C | AT81: =VALUE(MID(AQ81,FIND("$",AQ81,FIND("!",AQ81,1)+2)+1,5)) -> 16
AP82: S_BS_ermäßigt | AQ82: =Steuerung!$G$16 | AR82: Steuerung | AS82: G | AT82: 16
AP83: nRV_Knapp_Jahr | AQ83: =Steuerung!$C$17 | AR83: Steuerung | AS83: C | AT83: 17
AP84: nPV_Sachsen_AG_Jahr | AQ84: =Steuerung!$C$18 | AR84: Steuerung | AS84: C | AT84: 18
AP85: nPV_Sachsen_AN_Jahr | AQ85: =Steuerung!$C$19 | AR85: =MID(AQ85,2,FIND("!",AQ85,1)-2) -> Steuerung | AS85: =MID(AQ85,FIND("!",AQ85,1)+2,FIND("$",AQ85,FIND("!",AQ85,1)+2)-FIND("!",AQ85,1)-2) -> C | AT85: =VALUE(MID(AQ85,FIND("$",AQ85,FIND("!",AQ85,1)+2)+1,5)) -> 19
AP86: S_PV_Zu | AQ86: =Steuerung!$B$20 | AR86: Steuerung | AS86: B | AT86: 20
AP87: BS_PV_Zu | AQ87: =Steuerung!$C$20 | AR87: Steuerung | AS87: C | AT87: 20
AP88: S_U1 | AQ88: =Steuerung!$B$21 | AR88: Steuerung | AS88: B | AT88: 21
AP89: S_U1_Satz | AQ89: =Steuerung!$C$21 | AR89: Steuerung | AS89: C | AT89: 21
AP90: S_U2 | AQ90: =Steuerung!$B$22 | AR90: Steuerung | AS90: B | AT90: 22
AP91: S_U2_Satz | AQ91: =Steuerung!$C$22 | AR91: Steuerung | AS91: C | AT91: 22
C92: =#REF! ->  | AP92: S_U3 | AQ92: =Steuerung!$B$23 | AR92: Steuerung | AS92: B | AT92: 23
AP93: S_U3_Satz | AQ93: =Steuerung!$C$23 | AR93: Steuerung | AS93: C | AT93: 23
AP94: S_KV_PV_frei | AQ94: =Steuerung!$B$25 | AR94: Steuerung | AS94: B | AT94: 25
AP95: S_PV_Sachsen | AQ95: =Steuerung!$B$26 | AR95: Steuerung | AS95: B | AT95: 26
AP96: S_RV_frei | AQ96: =Steuerung!$B$27 | AR96: Steuerung | AS96: B | AT96: 27
AP97: S_RV_aus_t.E. | AQ97: =Steuerung!$B$28 | AR97: Steuerung | AS97: B | AT97: 28
AP98: S_RV_Knapp | AQ98: =Steuerung!$B$29 | AR98: Steuerung | AS98: B | AT98: 29
AP99: S_AV_nur | AQ99: =Steuerung!$B$30 | AR99: =MID(AQ99,2,FIND("!",AQ99,1)-2) -> Steuerung | AS99: =MID(AQ99,FIND("!",AQ99,1)+2,FIND("$",AQ99,FIND("!",AQ99,1)+2)-FIND("!",AQ99,1)-2) -> B | AT99: 30
AP100: S_AV_frei | AQ100: =Steuerung!$B$31 | AR100: =MID(AQ100,2,FIND("!",AQ100,1)-2) -> Steuerung | AS100: =MID(AQ100,FIND("!",AQ100,1)+2,FIND("$",AQ100,FIND("!",AQ100,1)+2)-FIND("!",AQ100,1)-2) -> B | AT100: 31
AP101: S_SGB_III | AQ101: =Steuerung!$B$32 | AR101: =MID(AQ101,2,FIND("!",AQ101,1)-2) -> Steuerung | AS101: =MID(AQ101,FIND("!",AQ101,1)+2,FIND("$",AQ101,FIND("!",AQ101,1)+2)-FIND("!",AQ101,1)-2) -> B | AT101: =VALUE(MID(AQ101,FIND("$",AQ101,FIND("!",AQ101,1)+2)+1,5)) -> 32
AP102: S_Sonder_1 | AQ102: =Steuerung!$B$33 | AR102: Steuerung | AS102: B | AT102: 33
AP103: S_Sonder_2 | AQ103: =Steuerung!$B$34 | AR103: Steuerung | AS103: B | AT103: 34
AP104: S_Sonder_2_Opt | AQ104: =Steuerung!$B$35 | AR104: Steuerung | AS104: B | AT104: 35
AP105: S_Sonder_2_Opt1 | AQ105: =Steuerung!$G$35 | AR105: Steuerung | AS105: G | AT105: 35
AP106: S_Mehrfach | AQ106: =Steuerung!$B$36 | AR106: Steuerung | AS106: B | AT106: 36
AP107: S_Sonder_2_Opt2 | AQ107: =Steuerung!$G$36 | AR107: Steuerung | AS107: G | AT107: 36
AP108: S_Sonder_4 | AQ108: =Steuerung!$B$37 | AR108: Steuerung | AS108: B | AT108: 37
AP109: S_Sonder_5 | AQ109: =Steuerung!$B$38 | AR109: Steuerung | AS109: B | AT109: 38
AP110: nAuswahl_Sonder | AQ110: =Steuerung!$C$40 | AR110: Steuerung | AS110: C | AT110: 40
AP111: S_Sonder_3_Quot | AQ111: =Steuerung!$B$55 | AR111: Steuerung | AS111: B | AT111: 55
AP112: S_Sonder_aktuell | AQ112: =Steuerung!$C$69 | AR112: Steuerung | AS112: C | AT112: 69
